[Event "NJSK 2022 Jeugd C"]
[Site "Almelo, Netherlands"]
[Date "2022.05.05"]
[Round "6.12"]
[White "Kumar, Prayan Sai"]
[Black "Franco, Hugo"]
[Result "1-0"]
[TimeControl "90min + 30sec/move"]
[WhiteElo "1562"]
[BlackElo "1441"]

1. d4 {[%clk 01:30:56]} {[%emt 00:00:04]} Nf6 {[%clk 01:30:51]} {[%emt
00:00:09]} 2. Nf3 {[%clk 01:31:17]} {[%emt 00:00:09]} e6 {[%clk 01:31:13]}
{[%emt 00:00:08]} 3. Bf4 {[%clk 01:31:31]} {[%emt 00:00:16]} c5 {[%clk
01:31:17]} {[%emt 00:00:26]} 4. e3 {[%clk 01:30:57]} {[%emt 00:01:05]} b6
{[%clk 01:31:38]} {[%emt 00:00:09]} 5. Nbd2 {[%clk 01:30:27]} {[%emt 00:00:59]}
Be7 {[%clk 01:29:23]} {[%emt 00:02:45]} 6. Bd3 {[%clk 01:29:46]} {[%emt
00:01:11]} Bb7 {[%clk 01:27:29]} {[%emt 00:02:24]} 7. O-O {[%clk 01:30:04]}
{[%emt 00:00:11]} O-O {[%clk 01:27:35]} {[%emt 00:00:25]} 8. c3 {[%clk
01:29:50]} {[%emt 00:00:44]} d6 {[%clk 01:27:14]} {[%emt 00:00:51]} 9. Qe2
{[%clk 01:27:38]} {[%emt 00:02:42]} Nbd7 {[%clk 01:25:33]} {[%emt 00:02:11]} 10.
e4 {[%clk 01:24:33]} {[%emt 00:03:35]} Nh5 {[%clk 01:19:49]} {[%emt 00:06:14]}
11. Be3 {[%clk 01:21:20]} {[%emt 00:03:44]} h6 {[%clk 01:15:21]} {[%emt
00:04:56]} 12. Ne1 {[%clk 01:15:21]} {[%emt 00:06:29]} Nhf6 {[%clk 01:14:37]}
{[%emt 00:01:14]} 13. f4 {[%clk 01:12:47]} {[%emt 00:03:05]} Qc7 {[%clk
01:11:08]} {[%emt 00:03:58]} 14. Nef3 {[%clk 00:52:10]} {[%emt 00:21:07]} d5
{[%clk 01:04:40]} {[%emt 00:06:58]} 15. e5 {[%clk 00:51:45]} {[%emt 00:00:56]}
Ne4 {[%clk 01:04:16]} {[%emt 00:00:54]} 16. g4 {[%clk 00:36:22]} {[%emt
00:15:52]} f6 {[%clk 00:58:17]} {[%emt 00:06:29]} 17. Bf2 {[%clk 00:30:54]}
{[%emt 00:05:58]} fxe5 {[%clk 00:55:40]} {[%emt 00:03:04]} 18. fxe5 {[%clk
00:25:06]} {[%emt 00:06:21]} Nxd2 {[%clk 00:54:28]} {[%emt 00:01:43]} 19. Nxd2
{[%clk 00:25:22]} {[%emt 00:00:14]} a6 {[%clk 00:41:48]} {[%emt 00:13:10]} 20.
h4 {[%clk 00:13:35]} {[%emt 00:12:17]} Rfe8 {[%clk 00:34:41]} {[%emt 00:07:36]}
21. g5 {[%clk 00:12:39]} {[%emt 00:01:27]} hxg5 {[%clk 00:34:38]} {[%emt
00:00:32]} 22. Bg6 {[%clk 00:12:44]} {[%emt 00:00:26]} Red8 {[%clk 00:32:27]}
{[%emt 00:02:40]} 23. Qh5 {[%clk 00:13:02]} {[%emt 00:00:12]} Nf8 {[%clk
00:32:27]} {[%emt 00:00:31]} 24. Bf7# {[%clk 00:12:53]} {[%emt 00:00:09]} 1-0

[Event "NJSK 2022 Jeugd C"]
[Site "Almelo, Netherlands"]
[Date "2022.05.05"]
[Round "7.1"]
[White "De Winter, Arthur"]
[Black "Van Arendonk, Polle"]
[Result "1-0"]
[TimeControl "90min + 30sec/move"]
[WhiteElo "2138"]
[BlackElo "1784"]

1. e4 {[%clk 01:30:57]} {[%emt 00:00:02]} e6 {[%clk 01:30:57]} {[%emt
00:00:04]} 2. d4 {[%clk 01:31:25]} {[%emt 00:00:02]} d5 {[%clk 01:31:22]}
{[%emt 00:00:04]} 3. Nc3 {[%clk 01:31:40]} {[%emt 00:00:14]} Bb4 {[%clk
01:31:42]} {[%emt 00:00:11]} 4. Nge2 {[%clk 01:32:06]} {[%emt 00:00:05]} dxe4
{[%clk 01:27:25]} {[%emt 00:04:47]} 5. a3 {[%clk 01:32:31]} {[%emt 00:00:04]}
Ba5 {[%clk 01:24:16]} {[%emt 00:03:40]} 6. b4 {[%clk 01:27:09]} {[%emt
00:05:52]} Bb6 {[%clk 01:24:39]} {[%emt 00:00:07]} 7. Nxe4 {[%clk 01:27:16]}
{[%emt 00:00:22]} Nf6 {[%clk 01:22:15]} {[%emt 00:02:54]} 8. Bg5 {[%clk
01:25:25]} {[%emt 00:02:20]} Nbd7 {[%clk 01:21:46]} {[%emt 00:01:00]} 9. c4
{[%clk 01:19:25]} {[%emt 00:06:30]} a6 {[%clk 01:18:06]} {[%emt 00:04:09]} 10.
g3 {[%clk 01:18:06]} {[%emt 00:01:50]} h6 {[%clk 01:16:14]} {[%emt 00:02:22]}
11. Nxf6+ {[%clk 01:15:10]} {[%emt 00:03:25]} Nxf6 {[%clk 01:16:17]} {[%emt
00:00:28]} 12. Bf4 {[%clk 01:14:25]} {[%emt 00:01:14]} c6 {[%clk 01:11:43]}
{[%emt 00:05:06]} 13. Bg2 {[%clk 01:13:35]} {[%emt 00:01:19]} Nh5 {[%clk
01:06:00]} {[%emt 00:06:13]} 14. Be5 {[%clk 00:56:40]} {[%emt 00:17:26]} f6
{[%clk 01:01:53]} {[%emt 00:04:37]} 15. Nf4 {[%clk 00:52:28]} {[%emt 00:04:42]}
Nxf4 {[%clk 00:56:39]} {[%emt 00:05:43]} 16. Bxf4 {[%clk 00:52:20]} {[%emt
00:00:38]} O-O {[%clk 00:54:28]} {[%emt 00:02:41]} 17. c5 {[%clk 00:47:21]}
{[%emt 00:05:30]} Bc7 {[%clk 00:54:37]} {[%emt 00:00:21]} 18. Bxc7 {[%clk
00:46:53]} {[%emt 00:00:57]} Qxc7 {[%clk 00:55:05]} {[%emt 00:00:02]} 19. Qb3
{[%clk 00:46:40]} {[%emt 00:00:42]} Bd7 {[%clk 00:51:07]} {[%emt 00:04:29]} 20.
O-O {[%clk 00:47:00]} {[%emt 00:00:10]} Kh8 {[%clk 00:49:05]} {[%emt 00:02:32]}
21. a4 {[%clk 00:44:41]} {[%emt 00:02:49]} Rfe8 {[%clk 00:43:27]} {[%emt
00:06:09]} 22. Rad1 {[%clk 00:44:18]} {[%emt 00:00:52]} Rad8 {[%clk 00:38:22]}
{[%emt 00:05:35]} 23. Rfe1 {[%clk 00:44:07]} {[%emt 00:00:41]} Bc8 {[%clk
00:32:52]} {[%emt 00:06:01]} 24. Bf1 {[%clk 00:41:42]} {[%emt 00:02:53]} e5
{[%clk 00:25:25]} {[%emt 00:07:59]} 25. dxe5 {[%clk 00:40:23]} {[%emt
00:01:48]} Rxd1 {[%clk 00:22:47]} {[%emt 00:03:08]} 26. Qxd1 {[%clk 00:40:32]}
{[%emt 00:00:20]} Rxe5 {[%clk 00:21:51]} {[%emt 00:01:27]} 27. Rxe5 {[%clk
00:40:48]} {[%emt 00:00:14]} fxe5 {[%clk 00:22:15]} {[%emt 00:00:06]} 28. Qf3
{[%clk 00:36:34]} {[%emt 00:04:43]} Qe7 {[%clk 00:20:51]} {[%emt 00:01:55]} 29.
Qe4 {[%clk 00:36:22]} {[%emt 00:00:41]} Qe6 {[%clk 00:16:35]} {[%emt 00:04:47]}
30. Bd3 {[%clk 00:36:04]} {[%emt 00:00:47]} g6 {[%clk 00:15:39]} {[%emt
00:01:27]} 31. Qxg6 {[%clk 00:32:38]} {[%emt 00:03:56]} Qxg6 {[%clk 00:16:05]}
{[%emt 00:00:05]} 32. Bxg6 {[%clk 00:33:04]} {[%emt 00:00:03]} Kg7 {[%clk
00:16:30]} {[%emt 00:00:05]} 33. Be4 {[%clk 00:33:02]} {[%emt 00:00:31]} Be6
{[%clk 00:12:07]} {[%emt 00:04:53]} 34. Kg2 {[%clk 00:31:10]} {[%emt 00:02:22]}
Kf6 {[%clk 00:09:17]} {[%emt 00:03:21]} 35. Kf3 {[%clk 00:29:41]} {[%emt
00:01:59]} Kg5 {[%clk 00:08:41]} {[%emt 00:01:05]} 36. Ke3 {[%clk 00:20:04]}
{[%emt 00:10:07]} Kf6 {[%clk 00:06:58]} {[%emt 00:02:15]} 37. f4 {[%clk
00:17:35]} {[%emt 00:02:58]} Bb3 {[%clk 00:06:42]} {[%emt 00:00:45]} 38. a5
{[%clk 00:16:38]} {[%emt 00:01:28]} Be6 {[%clk 00:06:28]} {[%emt 00:00:44]} 39.
Kf3 {[%clk 00:16:28]} {[%emt 00:00:40]} Bd7 {[%clk 00:06:22]} {[%emt 00:00:37]}
40. g4 {[%clk 00:16:34]} {[%emt 00:00:22]} Be6 {[%clk 00:06:26]} {[%emt
00:00:27]} 41. h4 {[%clk 00:16:41]} {[%emt 00:00:22]} Bd7 {[%clk 00:06:11]}
{[%emt 00:00:45]} 42. g5+ {[%clk 00:16:15]} {[%emt 00:00:57]} hxg5 {[%clk
00:06:29]} {[%emt 00:00:11]} 43. fxg5+ {[%clk 00:15:18]} {[%emt 00:01:27]} Kg7
{[%clk 00:06:25]} {[%emt 00:00:35]} 44. h5 {[%clk 00:15:27]} {[%emt 00:00:21]}
Be6 {[%clk 00:06:44]} {[%emt 00:00:11]} 45. Kg3 {[%clk 00:15:29]} {[%emt
00:00:27]} Bd7 {[%clk 00:05:44]} {[%emt 00:01:31]} 46. Kh4 {[%clk 00:15:38]}
{[%emt 00:00:20]} Be6 {[%clk 00:05:27]} {[%emt 00:00:48]} 47. h6+ {[%clk
00:14:35]} {[%emt 00:01:32]} Kf7 {[%clk 00:05:42]} {[%emt 00:00:15]} 48. g6+
{[%clk 00:14:29]} {[%emt 00:00:36]} Kf6 {[%clk 00:06:06]} {[%emt 00:00:07]} 49.
g7 {[%clk 00:14:22]} {[%emt 00:00:37]} Kf7 {[%clk 00:06:24]} {[%emt 00:00:13]}
50. Bh7 {[%clk 00:14:43]} {[%emt 00:00:08]} Kf6 {[%clk 00:05:55]} {[%emt
00:00:59]} 51. g8=Q {[%clk 00:15:06]} {[%emt 00:00:06]} Bxg8 {[%clk 00:06:22]}
{[%emt 00:00:04]} 52. Bxg8 {[%clk 00:15:33]} {[%emt 00:00:03]} e4 {[%clk
00:06:46]} {[%emt 00:00:05]} 53. h7 {[%clk 00:15:57]} {[%emt 00:00:07]} Kg7
{[%clk 00:07:10]} {[%emt 00:00:05]} 54. Kg4 {[%clk 00:16:24]} {[%emt 00:00:04]}
1-0

[Event "NJSK 2022 Jeugd C"]
[Site "Almelo, Netherlands"]
[Date "2022.05.05"]
[Round "7.2"]
[White "Smeets, Kobe"]
[Black "Kumar, Prajit Sai"]
[Result "0-1"]
[TimeControl "90min + 30sec/move"]
[WhiteElo "1984"]
[BlackElo "2042"]

1. e4 {[%clk 01:30:59]} c6 {[%clk 01:30:50]} {[%emt 00:00:11]} 2. d4 {[%clk
01:31:19]} {[%emt 00:00:10]} d5 {[%clk 01:31:15]} {[%emt 00:00:05]} 3. Nc3
{[%clk 01:31:42]} {[%emt 00:00:07]} dxe4 {[%clk 01:31:40]} {[%emt 00:00:05]} 4.
Nxe4 {[%clk 01:32:08]} {[%emt 00:00:04]} Nf6 {[%clk 01:32:02]} {[%emt
00:00:08]} 5. Nxf6+ {[%clk 01:32:32]} {[%emt 00:00:06]} exf6 {[%clk 01:32:27]}
{[%emt 00:00:06]} 6. c3 {[%clk 01:32:54]} {[%emt 00:00:08]} Bd6 {[%clk
01:32:53]} {[%emt 00:00:04]} 7. Bd3 {[%clk 01:33:20]} {[%emt 00:00:04]} O-O
{[%clk 01:33:17]} {[%emt 00:00:06]} 8. Qc2 {[%clk 01:33:48]} {[%emt 00:00:02]}
Re8+ {[%clk 01:33:40]} {[%emt 00:00:07]} 9. Ne2 {[%clk 01:34:13]} {[%emt
00:00:05]} h5 {[%clk 01:34:06]} {[%emt 00:00:03]} 10. O-O {[%clk 01:34:36]}
{[%emt 00:00:07]} h4 {[%clk 01:34:33]} {[%emt 00:00:03]} 11. h3 {[%clk
01:35:02]} {[%emt 00:00:04]} Nd7 {[%clk 01:34:55]} {[%emt 00:00:07]} 12. Bd2
{[%clk 01:35:24]} {[%emt 00:00:09]} Nf8 {[%clk 01:35:20]} {[%emt 00:00:05]} 13.
Rae1 {[%clk 01:35:27]} {[%emt 00:00:27]} Bc7 {[%clk 01:35:24]} {[%emt
00:00:25]} 14. c4 {[%clk 01:28:28]} {[%emt 00:07:29]} g6 {[%clk 01:27:24]}
{[%emt 00:08:30]} 15. f4 {[%clk 01:20:08]} {[%emt 00:08:50]} f5 {[%clk
01:26:18]} {[%emt 00:01:36]} 16. b4 {[%clk 01:04:32]} {[%emt 00:16:06]} a5
{[%clk 01:16:32]} {[%emt 00:10:16]} 17. a3 {[%clk 00:58:20]} {[%emt 00:06:43]}
Ne6 {[%clk 01:07:48]} {[%emt 00:09:13]} 18. Qc3 {[%clk 00:56:34]} {[%emt
00:02:16]} b6 {[%clk 01:03:32]} {[%emt 00:04:45]} 19. Bc1 {[%clk 00:54:27]}
{[%emt 00:02:38]} Bb7 {[%clk 00:58:31]} {[%emt 00:05:30]} 20. Bb2 {[%clk
00:51:33]} {[%emt 00:03:24]} Kh7 {[%clk 00:58:53]} {[%emt 00:00:08]} 21. c5
{[%clk 00:47:50]} {[%emt 00:04:14]} Qd7 {[%clk 00:52:39]} {[%emt 00:06:42]} 22.
d5 {[%clk 00:38:55]} {[%emt 00:09:25]} Qxd5 {[%clk 00:46:10]} {[%emt 00:06:59]}
23. Bc4 {[%clk 00:39:14]} {[%emt 00:00:12]} Qd7 {[%clk 00:46:16]} {[%emt
00:00:23]} 24. Bxe6 {[%clk 00:39:29]} {[%emt 00:00:16]} fxe6 {[%clk 00:46:37]}
{[%emt 00:00:09]} 25. Nd4 {[%clk 00:39:06]} {[%emt 00:00:53]} e5 {[%clk
00:38:21]} {[%emt 00:08:46]} 26. Nf3 {[%clk 00:39:30]} {[%emt 00:00:06]} Ba6
{[%clk 00:34:26]} {[%emt 00:04:25]} 27. Ng5+ {[%clk 00:27:41]} {[%emt
00:12:19]} Kg8 {[%clk 00:28:38]} {[%emt 00:06:18]} 28. fxe5 {[%clk 00:26:46]}
{[%emt 00:01:25]} Qd3 {[%clk 00:28:42]} {[%emt 00:00:25]} 29. Qxd3 {[%clk
00:25:43]} {[%emt 00:01:34]} Bxd3 {[%clk 00:29:04]} {[%emt 00:00:08]} 30. Rf4
{[%clk 00:26:11]} {[%emt 00:00:03]} Bd8 {[%clk 00:26:06]} {[%emt 00:03:27]} 31.
Nf3 {[%clk 00:26:30]} {[%emt 00:00:11]} Be4 {[%clk 00:24:56]} {[%emt 00:01:40]}
32. Nd4 {[%clk 00:22:47]} {[%emt 00:04:13]} axb4 {[%clk 00:24:10]} {[%emt
00:01:16]} 33. axb4 {[%clk 00:22:32]} {[%emt 00:00:45]} bxc5 {[%clk 00:24:27]}
{[%emt 00:00:12]} 34. bxc5 {[%clk 00:22:03]} {[%emt 00:01:00]} Ra2 {[%clk
00:19:02]} {[%emt 00:05:55]} 35. Rf2 {[%clk 00:21:31]} {[%emt 00:01:02]} Be7
{[%clk 00:17:14]} {[%emt 00:02:18]} 36. Rc1 {[%clk 00:07:25]} {[%emt 00:14:36]}
Bg5 {[%clk 00:15:52]} {[%emt 00:01:51]} 37. Rc3 {[%clk 00:04:55]} {[%emt
00:03:01]} Rb8 {[%clk 00:14:24]} {[%emt 00:01:57]} 38. Bc1 {[%clk 00:04:02]}
{[%emt 00:01:24]} Ra1 {[%clk 00:12:47]} {[%emt 00:02:07]} 39. Rf1 {[%clk
00:03:29]} {[%emt 00:01:03]} Ra2 {[%clk 00:11:16]} {[%emt 00:01:59]} 40. Rf2
{[%clk 00:02:09]} {[%emt 00:01:52]} Ra1 {[%clk 00:11:01]} {[%emt 00:00:45]} 41.
Rf1 {[%clk 00:02:22]} {[%emt 00:00:18]} Rbb1 {[%clk 00:10:53]} {[%emt
00:00:37]} 42. Nb3 {[%clk 00:02:01]} {[%emt 00:00:51]} Rxb3 {[%clk 00:11:10]}
{[%emt 00:00:12]} 43. Rxb3 {[%clk 00:02:02]} {[%emt 00:00:30]} Rxc1 {[%clk
00:11:35]} {[%emt 00:00:05]} 44. Rxc1 {[%clk 00:02:14]} {[%emt 00:00:18]} Bxc1
{[%clk 00:11:57]} {[%emt 00:00:07]} 45. Rb7 {[%clk 00:01:58]} {[%emt 00:00:47]}
Be3+ {[%clk 00:12:10]} {[%emt 00:00:16]} 46. Kf1 {[%clk 00:02:22]} {[%emt
00:00:06]} Bd5 {[%clk 00:11:15]} {[%emt 00:01:25]} 47. Rc7 {[%clk 00:01:42]}
{[%emt 00:01:11]} Bxc5 {[%clk 00:10:49]} {[%emt 00:00:56]} 48. Rd7 {[%clk
00:01:28]} {[%emt 00:00:45]} Bc4+ {[%clk 00:10:40]} {[%emt 00:00:39]} 49. Ke1
{[%clk 00:01:51]} {[%emt 00:00:07]} Bb4+ {[%clk 00:10:14]} {[%emt 00:00:55]} 50.
Kf2 {[%clk 00:02:07]} {[%emt 00:00:14]} Bc3 {[%clk 00:10:24]} {[%emt 00:00:20]}
51. Rd6 {[%clk 00:02:11]} {[%emt 00:00:26]} Bf7 {[%clk 00:07:05]} {[%emt
00:03:47]} 52. Rxc6 {[%clk 00:02:00]} {[%emt 00:00:42]} Bxe5 {[%clk 00:07:29]}
{[%emt 00:00:06]} 53. Rc2 {[%clk 00:01:44]} {[%emt 00:00:47]} Bd5 {[%clk
00:07:25]} {[%emt 00:00:33]} 54. Rd2 {[%clk 00:01:48]} {[%emt 00:00:27]} Be4
{[%clk 00:07:42]} {[%emt 00:00:13]} 55. Rd7 {[%clk 00:02:09]} {[%emt 00:00:09]}
Bc6 {[%clk 00:07:14]} {[%emt 00:01:01]} 56. Rd2 {[%clk 00:02:12]} {[%emt
00:00:26]} Kf7 {[%clk 00:07:23]} {[%emt 00:00:21]} 57. Ra2 {[%clk 00:01:48]}
{[%emt 00:00:55]} Bd5 {[%clk 00:07:25]} {[%emt 00:00:27]} 58. Rd2 {[%clk
00:02:04]} {[%emt 00:00:14]} Be4 {[%clk 00:07:42]} {[%emt 00:00:14]} 59. Rd1
{[%clk 00:01:35]} {[%emt 00:00:59]} Kf6 {[%clk 00:07:46]} {[%emt 00:00:26]} 60.
Rd2 {[%clk 00:01:56]} {[%emt 00:00:09]} Kg5 {[%clk 00:07:46]} {[%emt 00:00:30]}
61. Rd1 {[%clk 00:01:32]} {[%emt 00:00:55]} Kf4 {[%clk 00:07:47]} {[%emt
00:00:28]} 62. Rd2 {[%clk 00:01:33]} {[%emt 00:00:29]} Bb8 {[%clk 00:07:14]}
{[%emt 00:01:02]} 63. Ra2 {[%clk 00:01:12]} {[%emt 00:00:52]} Bd6 {[%clk
00:07:16]} {[%emt 00:00:28]} 64. Kg1 {[%clk 00:00:51]} {[%emt 00:00:51]} Kg3
{[%clk 00:06:54]} {[%emt 00:00:52]} 65. Rb2 {[%clk 00:00:53]} {[%emt 00:00:28]}
Bc5+ {[%clk 00:07:00]} {[%emt 00:00:23]} 66. Kh1 {[%clk 00:01:10]} {[%emt
00:00:13]} f4 {[%clk 00:06:19]} {[%emt 00:01:12]} 67. Rb5 {[%clk 00:01:28]}
{[%emt 00:00:12]} 0-1

[Event "NJSK 2022 Jeugd C"]
[Site "Almelo, Netherlands"]
[Date "2022.05.05"]
[Round "7.3"]
[White "Van Batenburg, Mees"]
[Black "Zhu, Chenwu"]
[Result "1-0"]
[TimeControl "90min + 30sec/move"]
[WhiteElo "1713"]
[BlackElo "1968"]

1. d4 {[%clk 01:30:45]} {[%emt 00:00:15]} d5 {[%clk 01:30:53]} {[%emt
00:00:07]} 2. Nc3 {[%clk 01:31:10]} {[%emt 00:00:05]} Nf6 {[%clk 01:30:46]}
{[%emt 00:00:36]} 3. Bf4 {[%clk 01:31:34]} {[%emt 00:00:06]} e6 {[%clk
01:30:05]} {[%emt 00:01:09]} 4. e3 {[%clk 01:31:43]} {[%emt 00:00:23]} Bd6
{[%clk 01:30:27]} {[%emt 00:00:09]} 5. Nf3 {[%clk 01:31:53]} {[%emt 00:00:20]}
c5 {[%clk 01:29:30]} {[%emt 00:01:27]} 6. dxc5 {[%clk 01:32:14]} {[%emt
00:00:09]} Bxf4 {[%clk 01:28:19]} {[%emt 00:01:40]} 7. exf4 {[%emt 00:00:09]}
Qc7 {[%clk 01:26:05]} {[%emt 00:02:41]} 8. Qd4 {[%clk 01:32:25]} {[%emt
00:00:43]} Nc6 {[%clk 01:25:09]} {[%emt 00:01:26]} 9. Bb5 {[%clk 01:32:44]}
{[%emt 00:00:11]} Bd7 {[%clk 01:23:08]} {[%emt 00:02:31]} 10. Bxc6 {[%clk
01:32:53]} {[%emt 00:00:21]} Bxc6 {[%clk 01:22:15]} {[%emt 00:01:23]} 11. O-O
{[%clk 01:31:01]} {[%emt 00:02:21]} O-O {[%clk 01:18:45]} {[%emt 00:04:01]} 12.
Ne5 {[%clk 01:28:32]} {[%emt 00:02:59]} Nd7 {[%clk 01:09:12]} {[%emt 00:10:02]}
13. b4 {[%clk 01:21:33]} {[%emt 00:07:29]} f6 {[%clk 01:03:36]} {[%emt
00:06:06]} 14. Nxd7 {[%clk 01:21:13]} {[%emt 00:00:49]} Qxd7 {[%clk 01:03:12]}
{[%emt 00:00:54]} 15. a4 {[%clk 01:18:08]} {[%emt 00:03:36]} a6 {[%clk
01:00:12]} {[%emt 00:03:30]} 16. Rfe1 {[%clk 01:13:58]} {[%emt 00:04:39]} Rae8
{[%clk 00:57:49]} {[%emt 00:02:53]} 17. Qd3 {[%clk 01:13:01]} {[%emt 00:01:27]}
d4 {[%clk 00:52:40]} {[%emt 00:05:39]} 18. Rad1 {[%clk 00:55:04]} {[%emt
00:18:27]} Bxa4 {[%clk 00:47:04]} {[%emt 00:06:07]} 19. Qxd4 {[%clk 00:55:21]}
{[%emt 00:00:13]} Qxd4 {[%clk 00:47:12]} {[%emt 00:00:22]} 20. Rxd4 {[%clk
00:55:46]} {[%emt 00:00:04]} Bxc2 {[%clk 00:47:14]} {[%emt 00:00:28]} 21. Rd6
{[%clk 00:55:16]} {[%emt 00:01:00]} Kf7 {[%clk 00:44:49]} {[%emt 00:02:55]} 22.
Rc1 {[%clk 00:52:16]} {[%emt 00:03:31]} Bf5 {[%clk 00:43:06]} {[%emt 00:02:12]}
23. b5 {[%clk 00:52:10]} {[%emt 00:00:37]} axb5 {[%clk 00:41:51]} {[%emt
00:01:45]} 24. Nxb5 {[%clk 00:52:12]} {[%emt 00:00:29]} Ke7 {[%clk 00:36:47]}
{[%emt 00:05:33]} 25. Nd4 {[%clk 00:48:05]} {[%emt 00:04:37]} Rc8 {[%clk
00:34:42]} {[%emt 00:02:35]} 26. Rb6 {[%clk 00:46:33]} {[%emt 00:02:02]} Rb8
{[%clk 00:25:30]} {[%emt 00:09:42]} 27. c6 {[%clk 00:37:20]} {[%emt 00:09:42]}
Rfc8 {[%clk 00:20:12]} {[%emt 00:05:49]} 28. f3 {[%clk 00:32:25]} {[%emt
00:05:25]} Rc7 {[%clk 00:15:39]} {[%emt 00:05:03]} 29. Nb5 {[%clk 00:31:22]}
{[%emt 00:01:33]} Rxc6 {[%clk 00:15:32]} {[%emt 00:00:36]} 30. Rcxc6 {[%clk
00:31:39]} {[%emt 00:00:13]} bxc6 {[%clk 00:15:59]} {[%emt 00:00:03]} 31. Rxb8
{[%clk 00:31:58]} {[%emt 00:00:11]} cxb5 {[%clk 00:16:26]} {[%emt 00:00:03]} 32.
Rxb5 {[%clk 00:32:19]} {[%emt 00:00:09]} Kf7 {[%clk 00:16:28]} {[%emt
00:00:28]} 33. Kf2 {[%clk 00:32:35]} {[%emt 00:00:15]} Bd3 {[%clk 00:16:43]}
{[%emt 00:00:15]} 34. Rb7+ {[%clk 00:32:54]} {[%emt 00:00:11]} Kg6 {[%clk
00:17:03]} {[%emt 00:00:09]} 35. Ke3 {[%clk 00:33:08]} {[%emt 00:00:16]} Bc4
{[%clk 00:17:16]} {[%emt 00:00:17]} 36. g4 {[%emt 00:01:26]} h5 {[%clk
00:17:00]} 37. h3 {[%clk 00:33:03]} {[%emt 00:00:25]} h4 {[%clk 00:16:20]}
{[%emt 00:01:10]} 38. Kf2 {[%clk 00:31:58]} {[%emt 00:01:35]} Bd5 {[%clk
00:16:02]} {[%emt 00:00:48]} 39. Rb8 {[%clk 00:32:19]} {[%emt 00:00:10]} Kh7
{[%clk 00:16:22]} {[%emt 00:00:09]} 40. Rf8 {[%clk 00:32:08]} {[%emt 00:00:42]}
Bc4 {[%clk 00:15:29]} {[%emt 00:01:22]} 41. Rd8 {[%clk 00:32:08]} {[%emt
00:00:31]} Bb3 {[%clk 00:15:19]} {[%emt 00:00:39]} 42. Ke3 {[%clk 00:31:42]}
{[%emt 00:00:55]} Ba4 {[%clk 00:13:36]} {[%emt 00:02:04]} 43. g5 {[%clk
00:31:02]} {[%emt 00:01:20]} fxg5 {[%clk 00:09:42]} {[%emt 00:04:25]} 44. fxg5
{[%clk 00:31:25]} {[%emt 00:00:06]} Bc2 {[%clk 00:09:20]} {[%emt 00:00:52]} 45.
f4 {[%clk 00:28:09]} {[%emt 00:03:46]} Bf5 {[%clk 00:09:27]} {[%emt 00:00:24]}
46. Rd2 {[%clk 00:28:29]} {[%emt 00:00:10]} Bxh3 {[%clk 00:09:24]} {[%emt
00:00:33]} 47. Rh2 {[%clk 00:28:55]} {[%emt 00:00:03]} Bf5 {[%clk 00:09:43]}
{[%emt 00:00:11]} 48. Rxh4+ {[%clk 00:29:21]} {[%emt 00:00:05]} Kg6 {[%clk
00:09:49]} {[%emt 00:00:23]} 49. Kd4 {[%clk 00:29:39]} {[%emt 00:00:13]} Kf7
{[%clk 00:09:31]} {[%emt 00:00:47]} 50. Ke5 {[%clk 00:30:01]} {[%emt 00:00:08]}
Ke7 {[%clk 00:07:57]} {[%emt 00:02:05]} 51. Rh1 {[%clk 00:30:14]} {[%emt
00:00:17]} Ke8 {[%clk 00:03:52]} {[%emt 00:04:35]} 52. Ra1 {[%clk 00:30:11]}
{[%emt 00:00:33]} Bg4 {[%clk 00:02:22]} {[%emt 00:02:00]} 53. Ra7 {[%clk
00:27:49]} {[%emt 00:02:52]} Kf8 {[%clk 00:01:41]} {[%emt 00:01:11]} 54. g6
{[%clk 00:27:14]} {[%emt 00:01:04]} Bf5 {[%clk 00:00:42]} {[%emt 00:01:29]} 55.
Kd6 {[%clk 00:27:36]} {[%emt 00:00:09]} Bxg6 {[%clk 00:00:57]} {[%emt
00:00:15]} 56. Kxe6 {[%clk 00:27:55]} {[%emt 00:00:11]} Kg8 {[%clk 00:01:13]}
{[%emt 00:00:14]} 57. f5 {[%clk 00:27:25]} {[%emt 00:01:00]} Bh5 {[%clk
00:01:21]} {[%emt 00:00:21]} 58. Ra8+ {[%clk 00:26:20]} {[%emt 00:01:35]} Kh7
{[%clk 00:01:39]} {[%emt 00:00:13]} 59. Ra1 {[%clk 00:25:36]} {[%emt 00:01:13]}
Bg4 {[%clk 00:01:24]} {[%emt 00:00:45]} 60. Rg1 {[%clk 00:25:57]} {[%emt
00:00:08]} Be2 {[%clk 00:00:53]} {[%emt 00:01:02]} 61. Kf7 {[%clk 00:26:17]}
{[%emt 00:00:10]} Bc4+ {[%clk 00:01:05]} {[%emt 00:00:18]} 62. Kf8 {[%clk
00:26:25]} {[%emt 00:00:22]} Kh6 {[%clk 00:00:37]} {[%emt 00:00:59]} 63. Rxg7
{[%clk 00:26:47]} {[%emt 00:00:08]} Bd3 {[%clk 00:00:59]} {[%emt 00:00:08]} 64.
f6 {[%clk 00:27:12]} {[%emt 00:00:05]} Bg6 {[%clk 00:01:23]} {[%emt 00:00:06]}
65. Rxg6+ {[%clk 00:27:16]} {[%emt 00:00:25]} Kxg6 {[%clk 00:01:48]} {[%emt
00:00:05]} 66. f7 {[%clk 00:27:44]} {[%emt 00:00:03]} Kf6 {[%emt 00:00:17]} 67.
Ke8 {[%clk 00:28:05]} {[%emt 00:00:03]} Kg6 {[%clk 00:02:34]} {[%emt 00:00:03]}
68. f8=Q {[%clk 00:28:30]} {[%emt 00:00:05]} 1-0